fUST/lending_fUST_20250305
["ID","MTS","AMOUNT","RATE_DAILY","PERIOD"]
[355406688,1741110652232,-151.0,0.00046027,120]
[355406689,1741110652244,-173.696596,0.00046027,120]
[355406690,1741110652254,-500.0,0.00046027,120]
[355406691,1741110652263,-535.46,0.00046027,120]
[355406692,1741110652273,-541.25,0.00046027,120]
[355406693,1741110652282,-500.0,0.00046027,120]
[355406694,1741110652291,-500.0,0.00046027,120]
[355406695,1741110652301,-699.16,0.00046027,120]
[355406696,1741110652310,-183.76985521,0.00046027,120]
[355406697,1741110652319,-2001.54,0.00046027,120]
[355406698,1741110652328,-500.0,0.00046027,120]
[355406699,1741110652338,-1000.0,0.00046027,120]
[355406700,1741110652347,-500.0,0.00046027,120]
[355406701,1741110652357,-500.0,0.00046027,120]
[355406702,1741110652366,-500.0,0.00046027,120]
[355406703,1741110652375,-1777.31,0.00046027,6]
[355406704,1741110652384,-1244.17,0.00046027,120]
[355406705,1741110652393,-500.0,0.00046027,120]
[355406706,1741110652403,-500.0,0.00046027,120]
[355406707,1741110652412,-154.53,0.00046027,120]
[355406708,1741110652421,-870.17,0.00046027,120]
[355406709,1741110652430,-500.0,0.00046027,120]
[355406710,1741110652442,-774.02,0.00046027,120]
[355406711,1741110652452,-812.48,0.00046027,120]
[355406712,1741110652462,-500.0,0.00046027,120]
[355406713,1741110652479,-500.0,0.00046027,120]
[355406714,1741110652490,-758.2,0.00046027,120]
[355406715,1741110652499,-500.0,0.00046027,120]
[355406716,1741110652509,-500.0,0.00046027,120]
[355406717,1741110652518,-1762.09,0.00046027,120]
[355406718,1741110652527,-1040.5,0.00046027,120]
[355406719,1741110652537,-1617.9,0.00046027,120]
[355406720,1741110652546,-532.7,0.00046027,120]
[355406721,1741110652555,-500.0,0.00046027,120]
[355406722,1741110652564,-7424.64684292,0.00046027,7]
[355406723,1741110652683,-502.76414863,0.00043835,120]
[355406724,1741110652692,-612.52585143,0.00046027,7]
[355406725,1741110652708,-8498.6,0.00046027,7]
[355406726,1741110652719,-4047.999,0.00046027,7]
[355406727,1741110652730,-9771.89,0.00046027,7]
[355406728,1741110652742,-775.96830565,0.00046027,7]
[355406729,1741110652753,-500.0,0.00046027,120]
[355406730,1741110652761,-500.0,0.00046027,120]
[355406731,1741110652771,-720.46,0.00046027,120]
[355406732,1741110652781,-500.0,0.00046027,120]
[355406733,1741110652790,-500.0,0.00046027,120]
[355406734,1741110652799,-500.0,0.00046027,120]
[355406735,1741110652808,-1306.64,0.00046027,30]
[355406736,1741110652818,-323.24292866,0.00046027,120]
[355406737,1741110652827,-924.753274,0.00046037,2]
[355406738,1741110652836,-489.0,0.000461,24]
[355406739,1741110652845,-680.47306692,0.000461,2]
[355406740,1741110652855,-799.26242477,0.00046121,95]
[355406763,1741110884034,5696.97,0.00046973,30]
[355406765,1741111067145,14373.76,0.00046973,30]
[355406767,1741111455903,200000.0,0.00047,60]
[355406768,1741111463129,200000.0,0.00047,60]
[355406769,1741111475213,200000.0,0.00047,60]
[355406770,1741111485567,1500.0,0.00047,120]
[355406771,1741111608117,-500.0,0.00025205,2]
[355406772,1741111608138,-500.0,0.00025205,2]
[355406773,1741111608159,-197.99734547,0.000279,2]
[355406774,1741111608179,-1607.3010356,0.0003081,2]
[355406775,1741111608201,-160.0,0.0003193,2]
[355406776,1741111608222,-1845.27322037,0.0003217,2]
[355406854,1741111832893,-2010.24949144,0.0003217,2]
[355406855,1741111832903,-154.68,0.000327,31]
[355406856,1741111832914,-180.6895992,0.00034828,2]
[355406857,1741111832924,-813.41414422,0.00034846,2]
[355406858,1741111832933,-166.0,0.00034862,120]
[355406859,1741111832943,-330.0,0.00035394,2]
[355406860,1741111832953,-24900.0,0.00035394,2]
[355406861,1741111832962,-615.48093937,0.000354,5]
[355406862,1741111832972,-500.0,0.000354,3]
[355406863,1741111832981,-2269.8400143,0.00035401,2]
[355406864,1741111832991,-500.0,0.0003589,2]
[355406865,1741111833001,-445.90523453,0.000359,7]
[355406867,1741111833011,-1951.65318,0.00036151,2]
[355406869,1741111833021,-612.43193101,0.00036199,2]
[355406871,1741111833036,-213.795612,0.00036451,2]
[355406872,1741111833046,-154.68,0.000367,31]
[355406873,1741111833056,-154.68,0.000367,31]
[355406874,1741111833066,-233.90749887,0.00037361,2]
[355406876,1741111833076,-10000.0,0.00037715,2]
[355406877,1741111833086,-250.0,0.00037987,2]
[355406878,1741111833097,-161.28402291,0.00038356,2]
[355406880,1741111833111,-3857.9043988,0.00039435,64]
[355406882,1741111833121,-193.966,0.00039452,54]
[355406883,1741111833131,-154.68,0.000406,31]
[355406884,1741111833140,-154.68,0.000406,31]
[355406886,1741111833150,-185.39613105,0.00040658,120]
[355406888,1741111833159,-397.0,0.0004077,2]
[355406890,1741111833169,-397.0,0.0004077,2]
[355406892,1741111833180,-500.0,0.00041211,2]
[355406894,1741111833190,-1954.0,0.00041963,2]
[355406896,1741111833200,-539.0,0.00041963,2]
[355406898,1741111833209,-2276.0,0.00041963,2]
[355406900,1741111833218,-151.0,0.00042191,120]
[355406902,1741111833228,-821.830118,0.00042191,120]
[355406904,1741111833238,-821.830118,0.00042191,120]
[355406906,1741111833248,-151.0,0.00042191,120]
[355406908,1741111833258,-153.385741,0.00042191,120]
[355406910,1741111833267,-151.0,0.00042191,120]
[355406912,1741111833279,-151.0,0.00042191,120]
[355406914,1741111833289,-151.0,0.00042191,120]
[355406916,1741111833298,-151.0,0.00042191,120]
[355406918,1741111833308,-151.0,0.00042191,120]
[355406920,1741111833319,-156.629981,0.00042191,120]
[355406922,1741111833329,-151.0,0.00042191,120]
[355406924,1741111833339,-500.0,0.0004265,10]
[355406926,1741111833350,-775.13819293,0.00042875,51]
[355406928,1741111833359,-600.1361735,0.00042958,4]
[355406930,1741111833369,-775.13819293,0.00042975,86]
[355406931,1741111833379,-151.0,0.00043013,120]
[355406932,1741111833388,-821.830118,0.00043013,120]
[355406933,1741111833397,-821.830118,0.00043013,120]
[355406934,1741111833407,-151.0,0.00043013,120]
[355406935,1741111833416,-177.659283,0.00043013,120]
[355406936,1741111833426,-151.0,0.00043013,120]
[355406937,1741111833435,-151.0,0.00043013,120]
[355406938,1741111833444,-151.0,0.00043013,120]
[355406939,1741111833454,-775.13819293,0.00043075,35]
[355406940,1741111833464,-500.0,0.00043099,30]
[355406941,1741111833473,-341.0,0.000431,23]
[355406942,1741111833483,-775.13819293,0.00043175,86]
[355406943,1741111833492,-775.13819293,0.00043275,43]
[355406944,1741111833504,-775.13819293,0.00043375,35]
[355406945,1741111833517,-775.13819293,0.00043475,44]
[355406946,1741111833531,-500.0,0.0004348,30]
[355406949,1741111833543,-297.133255,0.000435,120]
[355406951,1741111833556,-821.830118,0.000435,120]
[355406953,1741111833569,-821.830118,0.000435,120]
[355406955,1741111833580,-151.0,0.000435,120]
[355406958,1741111833590,-151.0,0.000435,120]
[355406960,1741111833603,-151.0,0.000435,120]
[355406962,1741111833615,-151.0,0.000435,120]
[355406964,1741111833626,-775.13819293,0.00043575,64]
[355406967,1741111833638,-728.34,0.00043617,30]
[355406969,1741111833649,-45268.73,0.00043617,10]
[355406971,1741111833662,-54322.47,0.00043627,10]
[355406973,1741111833674,-230.43698644,0.00043628,3]
[355406975,1741111833686,-65186.97,0.00043637,10]
[355406978,1741111833698,-230.43698644,0.00043638,3]
[355406980,1741111833710,-500.0,0.00043647,31]
[355406982,1741111833723,-500.0,0.00043647,31]
[355406984,1741111833734,-171.82229371,0.00043647,31]
[355406987,1741111833747,-500.0,0.00043647,31]
[355406989,1741111833759,-500.0,0.00043647,2]
[355406991,1741111833769,-500.0,0.00043647,31]
[355406994,1741111833784,-529.64806345,0.00043647,31]
[355406996,1741111833795,-342.26014515,0.00043647,31]
[355406998,1741111833806,-500.0,0.00043647,2]
[355407000,1741111833820,-500.0,0.00043647,31]
[355407003,1741111833833,-500.0,0.00043647,31]
[355407005,1741111833845,-500.0,0.00043647,31]
[355407007,1741111833858,-500.0,0.00043647,2]
[355407008,1741111833869,-500.0,0.00043647,31]
[355407010,1741111833882,-500.0,0.00043647,31]
[355407012,1741111833893,-500.0,0.00043647,2]
[355407014,1741111833903,-500.0,0.00043647,31]
[355407015,1741111833913,-500.0,0.00043647,31]
[355407016,1741111833925,-227.8405664,0.00043647,31]
[355407018,1741111833936,-500.0,0.00043647,31]
[355407020,1741111833948,-500.0,0.00043647,2]
[355407021,1741111833960,-500.0,0.00043647,31]
[355407023,1741111833974,-500.0,0.00043647,31]
[355407024,1741111833988,-500.0,0.00043647,31]
[355407025,1741111834000,-500.0,0.00043647,2]
[355407026,1741111834012,-500.0,0.00043647,31]
[355407027,1741111834027,-500.0,0.00043647,2]
[355407028,1741111834040,-500.0,0.00043647,31]
[355407029,1741111834053,-500.0,0.00043647,31]
[355407030,1741111834065,-500.0,0.00043647,31]
[355407031,1741111834078,-500.0,0.00043647,2]
[355407032,1741111834091,-500.0,0.00043647,31]
[355407033,1741111834102,-500.0,0.00043647,2]
[355407034,1741111834115,-500.0,0.00043647,31]
[355407035,1741111834126,-500.0,0.00043647,2]
[355407036,1741111834135,-500.0,0.00043647,31]
[355407037,1741111834148,-500.0,0.00043647,2]
[355407038,1741111834160,-500.0,0.00043647,31]
[355407039,1741111834173,-500.0,0.00043647,2]
[355407040,1741111834188,-500.0,0.00043647,31]
[355407041,1741111834201,-500.0,0.00043647,2]
[355407042,1741111834213,-500.0,0.00043647,2]
[355407043,1741111834225,-500.0,0.00043647,31]
[355407044,1741111834235,-500.0,0.00043647,2]
[355407045,1741111834247,-500.0,0.00043647,31]
[355407046,1741111834258,-500.0,0.00043647,2]
[355407047,1741111834268,-500.0,0.00043647,31]
[355407048,1741111834283,-500.0,0.00043647,2]
[355407049,1741111834295,-500.0,0.00043647,31]
[355407050,1741111834307,-500.0,0.00043647,2]
[355407051,1741111834319,-500.0,0.00043647,31]
[355407052,1741111834330,-500.0,0.00043647,2]
[355407053,1741111834341,-500.0,0.00043647,31]
[355407054,1741111834351,-500.0,0.00043647,2]
[355407055,1741111834363,-500.0,0.00043647,31]
[355407056,1741111834375,-500.0,0.00043647,2]
[355407057,1741111834387,-500.0,0.00043647,2]
[355407058,1741111834398,-500.0,0.00043647,2]
[355407059,1741111834409,-500.0,0.00043647,31]
[355407060,1741111834421,-500.0,0.00043647,2]
[355407061,1741111834433,-500.0,0.00043647,31]
[355407062,1741111834446,-500.0,0.00043647,2]
[355407063,1741111834457,-500.0,0.00043647,31]
[355407064,1741111834469,-500.0,0.00043647,2]
[355407065,1741111834481,-500.0,0.00043647,31]
[355407066,1741111834493,-500.0,0.00043647,2]
[355407067,1741111834505,-500.0,0.00043647,31]
[355407068,1741111834517,-500.0,0.00043647,2]
[355407069,1741111834529,-500.0,0.00043647,2]
[355407070,1741111834541,-500.0,0.00043647,31]
[355407071,1741111834554,-500.0,0.00043647,2]
[355407072,1741111834566,-500.0,0.00043647,31]
[355407073,1741111834577,-500.0,0.00043647,2]
[355407074,1741111834590,-419.11623366,0.00043647,31]
[355407075,1741111834601,-488.56998905,0.00043647,2]
[355407076,1741111834613,-500.0,0.00043647,2]
[355407077,1741111834624,-500.0,0.00043647,31]
[355407078,1741111834634,-500.0,0.00043647,2]
[355407079,1741111834645,-500.0,0.00043647,31]
[355407080,1741111834656,-500.0,0.00043647,2]
[355407081,1741111834668,-500.0,0.00043647,31]
[355407082,1741111834679,-500.0,0.00043647,2]
[355407083,1741111834689,-500.0,0.00043647,31]
[355407084,1741111834701,-500.0,0.00043647,2]
[355407085,1741111834712,-500.0,0.00043647,2]
[355407086,1741111834723,-500.0,0.00043647,31]
[355407087,1741111834734,-500.0,0.00043647,2]
[355407088,1741111834744,-500.0,0.00043647,2]
[355407089,1741111834755,-500.0,0.00043647,31]
[355407090,1741111834765,-500.0,0.00043647,2]
[355407091,1741111834777,-500.0,0.00043647,2]
[355407092,1741111834788,-500.0,0.00043647,2]
[355407093,1741111834799,-500.0,0.00043647,31]
[355407094,1741111834810,-500.0,0.00043647,2]
[355407095,1741111834821,-500.0,0.00043647,31]
[355407096,1741111834832,-500.0,0.00043647,31]
[355407097,1741111834842,-500.0,0.00043647,31]
[355407098,1741111834853,-778.04169671,0.00043647,2]
[355407099,1741111834864,-500.0,0.00043647,31]
[355407100,1741111834875,-778.04169671,0.00043647,2]
[355407101,1741111834886,-450.0,0.00043647,31]
[355407102,1741111834897,-778.04169671,0.00043647,2]
[355407103,1741111834908,-500.0,0.00043647,31]
[355407104,1741111834919,-778.04169671,0.00043647,2]
[355407105,1741111834931,-778.04169671,0.00043647,2]
[355407106,1741111834941,-500.0,0.00043647,31]
[355407107,1741111834953,-778.04169671,0.00043647,2]
[355407108,1741111834963,-778.04169671,0.00043647,2]
[355407109,1741111834973,-500.0,0.00043647,31]
[355407110,1741111834984,-778.04169671,0.00043647,2]
[355407111,1741111834994,-778.04169671,0.00043647,2]
[355407112,1741111835005,-500.0,0.00043647,31]
[355407113,1741111835016,-500.0,0.00043647,31]
[355407114,1741111835028,-778.04169671,0.00043647,2]
[355407115,1741111835039,-778.04169671,0.00043647,2]
[355407116,1741111835049,-778.04169671,0.00043647,2]
[355407117,1741111835059,-500.0,0.00043647,31]
[355407118,1741111835070,-778.04169671,0.00043647,2]
[355407119,1741111835081,-778.04169671,0.00043647,2]
[355407120,1741111835091,-500.0,0.00043647,31]
[355407121,1741111835104,-778.04169671,0.00043647,2]
[355407122,1741111835119,-778.04169671,0.00043647,2]
[355407123,1741111835130,-778.04169671,0.00043647,2]
[355407124,1741111835140,-778.04169671,0.00043647,2]
[355407125,1741111835153,-778.04169671,0.00043647,2]
[355407126,1741111835163,-778.04169671,0.00043647,2]
[355407127,1741111835335,-778.04169671,0.00043647,2]
[355407128,1741111835350,-778.04169671,0.00043647,2]
[355407129,1741111835359,-778.04169671,0.00043647,2]
[355407130,1741111835369,-778.04169671,0.00043647,2]
[355407131,1741111835379,-778.04169671,0.00043647,2]
[355407132,1741111835389,-778.04169671,0.00043647,2]
[355407133,1741111835399,-778.04169671,0.00043647,2]
[355407134,1741111835409,-778.04169671,0.00043647,2]
[355407135,1741111835421,-778.04169671,0.00043647,2]
[355407136,1741111835431,-778.04169671,0.00043647,2]
[355407137,1741111835441,-778.04169671,0.00043647,2]
[355407138,1741111835451,-778.04169671,0.00043647,2]
[355407139,1741111835461,-778.04169671,0.00043647,2]
[355407140,1741111835471,-778.04169671,0.00043647,2]
[355407141,1741111835480,-778.04169671,0.00043647,2]
[355407142,1741111835490,-778.04169671,0.00043647,2]
[355407143,1741111835500,-778.04169671,0.00043647,2]
[355407144,1741111835510,-778.04169671,0.00043647,2]
[355407145,1741111835521,-778.04169671,0.00043647,2]
[355407146,1741111835532,-778.04169671,0.00043647,2]
[355407147,1741111835542,-778.04169671,0.00043647,2]
[355407148,1741111835552,-778.04169671,0.00043647,2]
[355407149,1741111835563,-778.04169671,0.00043647,2]
[355407150,1741111835573,-500.0,0.00043647,31]
[355407151,1741111835583,-782.3641506,0.00043647,2]
[355407152,1741111835593,-782.3641506,0.00043647,2]
[355407153,1741111835603,-782.3641506,0.00043647,2]
[355407154,1741111835613,-782.36415059,0.00043647,2]
[355407155,1741111835623,-161.44098121,0.00043673,7]
[355407156,1741111835632,-775.13819293,0.00043675,40]
[355407157,1741111835643,-1146.82148299,0.00043734,2]
[355407158,1741111835653,-903.13648246,0.00043735,2]
[355407159,1741111835663,-999.0,0.0004375,120]
[355407160,1741111835673,-500.0,0.00043762,120]
[355407161,1741111835683,-397.0,0.0004377,2]
[355407162,1741111835692,-500.0,0.00043773,10]
[355407163,1741111835701,-485.77598358,0.00043773,7]
[355407164,1741111835710,-775.13819293,0.00043775,84]
[355407165,1741111835719,-500.0,0.00043779,30]
[355407166,1741111835728,-806.52945254,0.00043825,3]
[355407167,1741111835737,-237.960401,0.00043835,120]
[355407168,1741111835746,-501.98971261,0.00043835,120]
[355407169,1741111835755,-821.830118,0.00043835,120]
[355407170,1741111835764,-500.0,0.00043835,30]
[355407171,1741111835774,-821.830118,0.00043835,120]
[355407172,1741111835783,-526.83,0.00043835,120]
[355407173,1741111835791,-500.0,0.00043835,2]
[355407174,1741111835800,-350.14763968,0.00043835,2]
[355407175,1741111835809,-500.0,0.00043835,120]
[355407176,1741111835818,-500.0,0.00043835,120]
[355407177,1741111835828,-500.0,0.00043835,120]
[355407178,1741111835837,-500.0,0.00043835,120]
[355407179,1741111835846,-500.0,0.00043835,120]
[355407180,1741111835855,-500.0,0.00043835,120]
[355407181,1741111835864,-239.56839265,0.00043835,120]
[355407182,1741111835874,-500.0,0.00043835,120]
[355407183,1741111835883,-500.0,0.00043835,120]
[355407184,1741111835892,-299.96628303,0.00043835,120]
[355407185,1741111835901,-500.0,0.00043835,120]
[355407186,1741111835910,-500.0,0.00043835,120]
[355407187,1741111835919,-500.0,0.00043835,120]
[355407188,1741111835929,-500.0,0.00043835,120]
[355407189,1741111835939,-500.0,0.00043835,120]
[355407190,1741111835949,-500.0,0.00043835,120]
[355407191,1741111835960,-500.0,0.00043835,120]
[355407192,1741111835969,-643.01145109,0.00043835,120]
[355407193,1741111835979,-500.0,0.00043835,120]
[355407194,1741111835988,-502.17481969,0.00043835,120]
[355407195,1741111835997,-500.0,0.00043835,120]
[355407196,1741111836006,-500.0,0.00043835,120]
[355407197,1741111836015,-500.0,0.00043835,120]
[355407198,1741111836026,-500.0,0.00043835,120]
[355407199,1741111836035,-500.0,0.00043835,120]
[355407200,1741111836044,-500.0,0.00043835,120]
[355407201,1741111836054,-500.0,0.00043835,120]
[355407202,1741111836063,-302.13045663,0.00043835,120]
[355407203,1741111836072,-151.0,0.00043835,120]
[355407204,1741111836081,-500.0,0.00043835,120]
[355407205,1741111836091,-500.0,0.00043835,120]
[355407206,1741111836103,-151.112946,0.00043835,120]
[355407207,1741111836114,-500.0,0.00043835,120]
[355407208,1741111836125,-500.0,0.00043835,120]
[355407209,1741111836134,-500.0,0.00043835,120]
[355407210,1741111836144,-502.03060679,0.00043835,7]
[355407211,1741111836156,-500.0,0.00043835,120]
[355407212,1741111836166,-500.0,0.00043835,120]
[355407213,1741111836176,-500.0,0.00043835,120]
[355407214,1741111836186,-500.0,0.00043835,120]
[355407215,1741111836196,-500.0,0.00043835,120]
[355407216,1741111836206,-500.0,0.00043835,120]
[355407217,1741111836216,-500.0,0.00043835,120]
[355407218,1741111836226,-500.0,0.00043835,120]
[355407219,1741111836236,-500.0,0.00043835,120]
[355407220,1741111836246,-500.0,0.00043835,120]
[355407221,1741111836256,-500.0,0.00043835,120]
[355407222,1741111836266,-500.0,0.00043835,120]
[355407223,1741111836279,-500.0,0.00043835,120]
[355407224,1741111836289,-500.0,0.00043835,120]
[355407225,1741111836298,-500.0,0.00043835,120]
[355407226,1741111836308,-500.0,0.00043835,120]
[355407227,1741111836317,-151.0,0.00043835,120]
[355407228,1741111836327,-500.0,0.00043835,120]
[355407229,1741111836337,-500.0,0.00043835,120]
[355407230,1741111836346,-500.0,0.00043835,120]
[355407231,1741111836355,-500.0,0.00043835,120]
[355407232,1741111836365,-500.0,0.00043835,120]
[355407233,1741111836375,-500.0,0.00043835,120]
[355407234,1741111836385,-500.0,0.00043835,120]
[355407235,1741111836395,-500.0,0.00043835,120]
[355407236,1741111836406,-508.40025378,0.00043835,120]
[355407237,1741111836415,-500.0,0.00043835,120]
[355407238,1741111836425,-500.0,0.00043835,120]
[355407239,1741111836435,-317.5521734,0.00043835,120]
[355407240,1741111836445,-500.0,0.00043835,120]
[355407241,1741111836455,-500.0,0.00043835,120]
[355407242,1741111836465,-500.0,0.00043835,120]
[355407243,1741111836475,-500.0,0.00043835,120]
[355407244,1741111836485,-568.12034872,0.00043835,120]
[355407245,1741111836495,-500.0,0.00043835,120]
[355407246,1741111836504,-500.0,0.00043835,120]
[355407247,1741111836513,-500.0,0.00043835,120]
[355407248,1741111836524,-500.0,0.00043835,120]
[355407249,1741111836534,-500.0,0.00043835,120]
[355407250,1741111836543,-500.0,0.00043835,120]
[355407251,1741111836553,-500.0,0.00043835,120]
[355407252,1741111836563,-500.0,0.00043835,120]
[355407253,1741111836572,-500.0,0.00043835,120]
[355407254,1741111836582,-500.0,0.00043835,120]
[355407255,1741111836591,-500.0,0.00043835,120]
[355407256,1741111836601,-500.0,0.00043835,120]
[355407257,1741111836610,-500.0,0.00043835,120]
[355407258,1741111836620,-500.0,0.00043835,120]
[355407259,1741111836629,-1000.0,0.00043835,120]
[355407260,1741111836638,-509.16831827,0.00043835,120]
[355407261,1741111836647,-500.0,0.00043835,120]
[355407262,1741111836656,-500.0,0.00043835,120]
[355407263,1741111836665,-506.9885584,0.00043835,120]
[355407264,1741111836674,-500.0,0.00043835,120]
[355407265,1741111836683,-500.0,0.00043835,120]
[355407266,1741111836692,-500.0,0.00043835,120]
[355407267,1741111836701,-500.0,0.00043835,120]
[355407268,1741111836710,-500.0,0.00043835,120]
[355407269,1741111836719,-500.0,0.00043835,120]
[355407270,1741111836729,-460.8971767,0.00043835,120]
[355407271,1741111836738,-500.0,0.00043835,120]
[355407272,1741111836748,-500.0,0.00043835,120]
[355407273,1741111836756,-500.0,0.00043835,120]
[355407274,1741111836766,-573.49416307,0.00043835,120]
[355407275,1741111836776,-500.0,0.00043835,120]
[355407276,1741111836785,-500.0,0.00043835,120]
[355407277,1741111836794,-500.0,0.00043835,120]
[355407278,1741111836803,-500.0,0.00043835,120]
[355407279,1741111836812,-500.0,0.00043835,120]
[355407280,1741111836822,-500.0,0.00043835,120]
[355407281,1741111836831,-500.0,0.00043835,120]
[355407282,1741111836841,-500.0,0.00043835,120]
[355407283,1741111836850,-500.0,0.00043835,120]
[355407284,1741111836859,-500.0,0.00043835,120]
[355407285,1741111836868,-500.0,0.00043835,120]
[355407286,1741111836877,-500.0,0.00043835,120]
[355407287,1741111836886,-500.0,0.00043835,120]
[355407288,1741111836897,-638.28692925,0.00043835,120]
[355407289,1741111836906,-500.0,0.00043835,120]
[355407290,1741111836915,-500.0,0.00043835,120]
[355407291,1741111836924,-500.0,0.00043835,120]
[355407292,1741111836933,-374.45246057,0.00043835,120]
[355407293,1741111836943,-500.0,0.00043835,120]
[355407294,1741111836953,-500.0,0.00043835,120]
[355407295,1741111836963,-380.4116414,0.00043835,120]
[355407296,1741111836972,-500.0,0.00043835,120]
[355407297,1741111836981,-500.0,0.00043835,120]
[355407298,1741111836990,-500.0,0.00043835,120]
[355407299,1741111836999,-500.0,0.00043835,120]
[355407300,1741111837008,-500.0,0.00043835,120]
[355407301,1741111837018,-505.9588988,0.00043835,120]
[355407302,1741111837029,-500.0,0.00043835,120]
[355407303,1741111837038,-500.0,0.00043835,120]
[355407304,1741111837047,-500.0,0.00043835,120]
[355407305,1741111837057,-500.0,0.00043835,120]
[355407306,1741111837067,-500.0,0.00043835,120]
[355407307,1741111837077,-500.0,0.00043835,120]
[355407308,1741111837086,-500.0,0.00043835,120]
[355407309,1741111837097,-500.0,0.00043835,120]
[355407310,1741111837107,-500.0,0.00043835,120]
[355407311,1741111837119,-500.0,0.00043835,120]
[355407312,1741111837129,-500.0,0.00043835,120]
[355407313,1741111837139,-624.64112621,0.00043835,120]
[355407314,1741111837150,-500.0,0.00043835,120]
[355407315,1741111837160,-500.0,0.00043835,120]
[355407316,1741111837169,-500.0,0.00043835,120]
[355407317,1741111837179,-500.0,0.00043835,120]
[355407318,1741111837192,-500.0,0.00043835,120]
[355407319,1741111837201,-500.0,0.00043835,120]
[355407320,1741111837210,-500.0,0.00043835,120]
[355407321,1741111837219,-302.03971138,0.00043835,120]
[355407322,1741111837228,-500.0,0.00043835,120]
[355407323,1741111837238,-500.0,0.00043835,120]
[355407324,1741111837247,-500.0,0.00043835,120]
[355407325,1741111837258,-500.0,0.00043835,120]
[355407326,1741111837267,-500.0,0.00043835,120]
[355407327,1741111837281,-500.0,0.00043835,120]
[355407328,1741111837292,-500.0,0.00043835,120]
[355407329,1741111837303,-500.0,0.00043835,120]
[355407330,1741111837314,-500.0,0.00043835,120]
[355407331,1741111837324,-500.0,0.00043835,120]
[355407332,1741111837334,-500.0,0.00043835,120]
[355407333,1741111837344,-333.36093072,0.00043835,120]
[355407334,1741111837354,-500.0,0.00043835,120]
[355407335,1741111837364,-500.0,0.00043835,120]
[355407336,1741111837374,-1000.0,0.00043835,120]
[355407337,1741111837384,-500.0,0.00043835,120]
[355407338,1741111837393,-500.0,0.00043835,120]
[355407339,1741111837403,-500.0,0.00043835,120]
[355407340,1741111837412,-500.0,0.00043835,120]
[355407341,1741111837422,-500.0,0.00043835,120]
[355407342,1741111837432,-500.0,0.00043835,120]
[355407343,1741111837442,-500.0,0.00043835,120]
[355407344,1741111837451,-500.0,0.00043835,120]
[355407345,1741111837461,-500.0,0.00043835,120]
[355407346,1741111837471,-500.0,0.00043835,120]
[355407347,1741111837481,-500.0,0.00043835,120]
[355407348,1741111837491,-500.0,0.00043835,120]
[355407349,1741111837500,-500.0,0.00043835,120]
[355407350,1741111837511,-500.0,0.00043835,120]
[355407351,1741111837520,-500.0,0.00043835,120]
[355407352,1741111837535,-500.0,0.00043835,120]
[355407353,1741111837545,-500.0,0.00043835,120]
[355407354,1741111837554,-500.0,0.00043835,120]
[355407355,1741111837563,-500.0,0.00043835,120]
[355407356,1741111837572,-500.0,0.00043835,120]
[355407357,1741111837582,-500.0,0.00043835,120]